bitfinex/quotes_BTCUSD_20250723
["timestamp","ask_amount","ask_price","bid_price","bid_amount"]
[1753281785652,0.47010967,118120.0,118110.0,0.47464602]
[1753281785860,0.47010967,118120.0,118110.0,0.47464616]
[1753281786098,0.46375682,118120.0,118110.0,0.48311198]
[1753281786278,0.47222271,118120.0,118110.0,0.4746458]
[1753281786498,0.47222271,118120.0,118110.0,0.43228762]
[1753281786702,0.4348776,118120.0,118110.0,0.44075344]
[1753281786906,0.48438193,118120.0,118110.0,0.47395344]
[1753281787114,0.49284753,118120.0,118110.0,0.47395344]
[1753281787479,0.49284753,118120.0,118110.0,0.44075344]
[1753281787681,0.48438193,118120.0,118110.0,0.45820246]
[1753281787885,0.48438193,118120.0,118110.0,0.51601094]
[1753281788095,0.49284753,118120.0,118110.0,0.51601094]
[1753281788500,0.55169341,118120.0,118110.0,0.51601094]
[1753281788713,0.50977903,118120.0,118110.0,0.48411094]
[1753281788890,0.49284746,118120.0,118110.0,0.48411094]
[1753281789133,0.8258429,118120.0,118110.0,0.37437516]
[1753281789332,0.4258429,118120.0,118110.0,0.55217544]
[1753281789452,0.50669769,118120.0,118110.0,0.55217544]
[1753281789659,0.48976648,118120.0,118110.0,0.36590848]
[1753281790071,0.52916716,118120.0,118110.0,0.36590848]
[1753281790295,0.01693372,118100.0,118090.0,0.20319312]
[1753281790490,0.04175703,118100.0,118090.0,0.56064214]
[1753281790734,0.050224,118100.0,118090.0,0.56064214]
[1753281790963,0.07033822,118100.0,118090.0,0.56064214]
[1753281791170,0.05340414,118100.0,118090.0,0.58650344]
[1753281791375,0.03907779,118100.0,118090.0,0.58650344]
[1753281791580,0.01367675,118100.0,118090.0,0.58650344]
[1753281791917,0.00203,118100.0,118090.0,0.58852344]
[1753281792132,0.23111321,118110.0,118100.0,0.18628259]
[1753281792337,0.22467689,118110.0,118100.0,0.18628273]
[1753281792547,0.00846725,118100.0,118090.0,0.57803526]
[1753281792788,0.02214443,118100.0,118090.0,0.56956772]
[1753281792992,0.02214443,118100.0,118090.0,0.57456801]
[1753281792993,0.20842687,118100.0,118090.0,0.57456801]
[1753281793204,0.20842687,118100.0,118090.0,0.57156801]
[1753281793411,0.21689427,118100.0,118090.0,0.57156801]
[1753281793641,0.65912886,118100.0,118090.0,0.3678613]
[1753281793890,0.66442732,118100.0,118090.0,0.55415952]
[1753281794106,0.66442732,118100.0,118090.0,0.57460854]
[1753281794530,0.66442732,118100.0,118090.0,0.56614071]
[1753281794741,0.69492732,118100.0,118090.0,0.55767267]
[1753281794950,0.69492732,118100.0,118090.0,0.56614064]
[1753281795368,0.69492732,118100.0,118090.0,0.58307622]
[1753281795548,0.47284577,118100.0,118090.0,0.58654383]
[1753281795758,0.422144,118100.0,118090.0,0.58754383]
[1753281795964,0.422144,118100.0,118090.0,0.58954383]
[1753281796415,0.41367689,118100.0,118090.0,0.59156383]
[1753281796607,0.40203,118100.0,118090.0,0.59156383]
[1753281796817,0.40203,118100.0,118090.0,0.62156383]
[1753281797242,0.4,118100.0,118090.0,0.62156383]
[1753281797472,0.46151386,118120.0,118110.0,0.17780028]
[1753281797722,0.54802116,118120.0,118110.0,0.17780028]
[1753281797942,0.54802116,118120.0,118110.0,0.18626682]
[1753281798153,0.02539904,118110.0,118100.0,0.52626942]
[1753281798365,0.03589521,118110.0,118100.0,0.53675631]
[1753281798580,0.41896243,118110.0,118100.0,0.53675631]
[1753281798800,0.41049618,118110.0,118100.0,0.53675631]
[1753281799245,0.41049618,118110.0,118100.0,0.58560533]
[1753281799246,0.4,118110.0,118100.0,0.58560533]
[1753281799456,0.43386492,118110.0,118100.0,0.58560533]
[1753281800083,0.42539839,118110.0,118100.0,0.24560533]
[1753281800550,0.41693214,118110.0,118100.0,0.24560533]
[1753281800759,0.42539839,118110.0,118100.0,0.24560533]
[1753281801176,0.40846603,118110.0,118100.0,0.24560533]
[1753281801400,0.42539839,118110.0,118100.0,0.24560533]
[1753281801587,0.41693214,118110.0,118100.0,0.24560533]
[1753281801852,0.41693221,118110.0,118100.0,0.27940533]
[1753281802070,0.41693221,118110.0,118100.0,0.24560533]
[1753281802286,0.42539853,118110.0,118100.0,0.21420533]
[1753281803005,0.4497043,118110.0,118100.0,0.18370316]
[1753281803246,0.46020084,118110.0,118100.0,0.17302105]
[1753281803462,0.54421622,118110.0,118100.0,0.17302105]
[1753281803685,0.54739622,118110.0,118100.0,0.17100105]
[1753281803910,0.71673054,118110.0,118100.0,0.14559987]
[1753281804241,0.70232442,118110.0,118100.0,0.01693443]
[1753281804373,0.70232442,118110.0,118100.0,0.17780238]
[1753281804613,0.70232442,118110.0,118100.0,0.17780245]
[1753281804853,0.71759164,118110.0,118090.0,0.2121588]
[1753281805099,0.71759164,118110.0,118100.0,0.11850262]
[1753281805100,0.67692503,118110.0,118100.0,0.11850262]
[1753281805353,0.67692503,118110.0,118100.0,0.12696987]
[1753281805594,0.66845842,118110.0,118090.0,0.31896863]
[1753281805838,0.55148093,118100.0,118090.0,0.0258613]
[1753281806076,0.55148093,118100.0,118080.0,0.17784468]
[1753281806077,0.17783032,118090.0,118080.0,0.17784468]
[1753281806311,0.17783032,118090.0,118060.0,0.24499408]
[1753281806312,0.18631399,118080.0,118060.0,0.24499408]
[1753281806545,0.18631399,118080.0,118060.0,0.32947181]
[1753281806546,0.00846904,118070.0,118060.0,0.32947181]
[1753281806814,0.20720003,118070.0,118060.0,0.22067373]
[1753281807055,0.2898468,118070.0,118060.0,0.16983202]
[1753281807293,0.28137776,118070.0,118060.0,0.21224488]
[1753281807532,0.2729085,118070.0,118060.0,0.19530457]
[1753281807739,0.27299148,118070.0,118060.0,0.19530457]
[1753281807965,0.28146074,118070.0,118060.0,0.220715]
[1753281808183,0.28993029,118070.0,118060.0,0.22071514]
[1753281808620,0.28993029,118070.0,118060.0,0.18485593]
[1753281808876,0.0263625,118070.0,118060.0,0.19536541]
[1753281809112,0.03286169,118070.0,118060.0,0.22716498]
[1753281809352,0.03285891,118070.0,118060.0,0.22716498]
[1753281809568,0.02438972,118070.0,118060.0,0.22816498]
[1753281809996,0.42438972,118070.0,118060.0,0.19765636]
[1753281810211,0.42438972,118070.0,118060.0,0.15528327]
[1753281810459,0.43285891,118070.0,118060.0,0.15528327]
[1753281810681,0.44132831,118070.0,118060.0,0.12548327]
[1753281810895,0.44329831,118070.0,118060.0,0.10514469]
[1753281811115,0.44329824,118070.0,118060.0,0.10514469]
[1753281811332,0.42438972,118070.0,118060.0,0.13824469]
[1753281811549,0.43285891,118070.0,118060.0,0.15205667]
[1753281811761,0.44979779,118070.0,118060.0,0.29723206]
[1753281811959,0.69753526,118070.0,118060.0,0.21669225]
[1753281812200,0.69753526,118070.0,118060.0,0.03034677]
[1753281812201,0.69212622,118070.0,118060.0,0.03034677]
[1753281812418,0.69212622,118070.0,118060.0,0.21465218]
[1753281812647,0.69212622,118070.0,118060.0,0.20618227]
[1753281812863,0.69212622,118070.0,118060.0,0.19431282]
[1753281813083,0.68365703,118070.0,118060.0,0.14346875]
[1753281813334,0.67518763,118070.0,118060.0,0.14346875]
[1753281813526,0.67518763,118070.0,118060.0,0.1519388]
[1753281813783,0.67518763,118070.0,118060.0,0.16040849]
[1753281813784,0.11426542,118070.0,118060.0,0.16040849]
[1753281814002,0.03788891,118070.0,118060.0,0.16045849]
[1753281814218,0.03482891,118070.0,118060.0,0.16045849]
[1753281814459,0.03285891,118070.0,118060.0,0.22325849]
[1753281814679,0.02438972,118070.0,118060.0,0.22325849]
[1753281814892,0.04132824,118070.0,118060.0,0.19315849]
[1753281815024,0.04979764,118070.0,118060.0,0.16045849]
[1753281815240,0.04979764,118070.0,118030.0,0.0004]
[1753281815241,0.17790572,118040.0,118030.0,0.0004]
[1753281815441,1.10521165,118040.0,118030.0,0.0004]
[1753281815643,0.17933918,118040.0,118030.0,0.0004]
[1753281815846,0.17541603,118030.0,118010.0,0.22111233]
[1753281816093,0.02541862,118020.0,118010.0,0.02583863]
[1753281816300,0.21071818,118020.0,118010.0,0.53484924]
[1753281816506,0.2276643,118020.0,118010.0,0.35689823]
[1753281816713,0.17795065,118010.0,118000.0,0.38789823]
[1753281816936,0.17795065,118010.0,117990.0,0.57375292]
[1753281816937,0.2157657,118010.0,117990.0,0.57375292]
[1753281817151,0.22423934,118010.0,118000.0,6e-05]
[1753281817361,0.21576556,118010.0,118000.0,6e-05]
[1753281817543,0.21576556,118010.0,118000.0,0.00055125]
[1753281817774,0.20226192,118010.0,118000.0,0.00902582]
[1753281818008,0.21073534,118010.0,118000.0,0.35744948]
[1753281818215,0.21073527,118010.0,118000.0,0.36592405]
[1753281818424,0.21073527,118010.0,118000.0,0.35744948]
[1753281818578,0.21073527,118010.0,118000.0,0.37439855]
[1753281818778,0.21073527,118010.0,118000.0,0.33709926]
[1753281818779,0.21920912,118010.0,118000.0,0.33709926]
[1753281818961,0.23845215,118010.0,118000.0,0.29470295]
[1753281819154,0.2299783,118010.0,118000.0,0.35689823]
[1753281819409,0.2299783,118010.0,118000.0,0.38269182]
[1753281819654,0.22150524,118010.0,118000.0,0.38269182]
[1753281819809,0.19881857,118010.0,118000.0,0.02679359]
[1753281820485,0.19881857,118010.0,118000.0,0.38369182]
[1753281820655,0.20729163,118010.0,118000.0,0.38573182]
[1753281820831,0.20729163,118010.0,118000.0,0.38473182]
[1753281821246,0.20423163,118010.0,118000.0,0.55422334]
[1753281821448,0.0158377,118010.0,118000.0,1.08796172]
[1753281821650,0.0158377,118010.0,118000.0,0.73106349]
[1753281821852,0.0158377,118010.0,118000.0,1.08796172]
[1753281822263,0.41694376,118030.0,118020.0,0.1050228]
[1753281822459,0.41577042,118030.0,118020.0,0.48089651]
[1753281822722,0.42424219,118030.0,118020.0,0.48936957]
[1753281822933,0.44118638,118030.0,118020.0,0.46902214]
[1753281823146,0.44118631,118030.0,118020.0,0.47749477]
[1753281823395,0.43271418,118030.0,118020.0,0.47749477]
[1753281823618,0.44218638,118030.0,118020.0,0.46902214]
[1753281823839,0.43371418,118030.0,118020.0,0.46902214]
[1753281824049,0.42424219,118030.0,118020.0,0.47749477]
[1753281824491,0.41577042,118030.0,118020.0,0.47749477]
[1753281824707,0.42424226,118030.0,118020.0,0.47749477]
[1753281825127,0.43271425,118030.0,118020.0,0.47749477]
[1753281825250,0.43271425,118030.0,118020.0,0.43510614]
[1753281825454,0.42424226,118030.0,118020.0,0.45174277]
[1753281825670,0.41577042,118030.0,118020.0,0.60136007]
[1753281825902,0.01577042,118030.0,118020.0,0.60136007]
[1753281826100,0.02424233,118030.0,118020.0,0.58472344]
[1753281826308,0.02424226,118030.0,118020.0,0.58268344]
[1753281826518,0.01577042,118030.0,118020.0,0.58268344]
[1753281826924,0.02424226,118030.0,118020.0,0.70985957]
[1753281828083,0.02423568,118030.0,118020.0,0.70985957]
[1753281828293,0.02423568,118030.0,118020.0,0.63694812]
[1753281828878,0.03270759,118030.0,118020.0,0.63694812]
[1753281829092,0.02423568,118030.0,118020.0,0.63694812]
[1753281829864,0.01576384,118030.0,118020.0,0.63694812]
[1753281830283,0.01576384,118030.0,118020.0,0.63897812]
[1753281832902,0.01576384,118030.0,118020.0,0.69935672]
[1753281833114,0.01576384,118030.0,118020.0,0.70982957]
[1753281834371,0.01576384,118030.0,118020.0,0.33935816]
[1753281834582,0.01576384,118030.0,118020.0,0.70472909]
[1753281834825,0.01576384,118030.0,118020.0,0.68438318]
[1753281835255,0.01576384,118030.0,118020.0,0.68638318]
[1753281835869,0.01576384,118030.0,118020.0,0.25791225]
[1753281835870,0.03773774,118030.0,118020.0,0.25791225]
[1753281836130,0.04621001,118030.0,118020.0,0.25791225]
[1753281836394,0.05471235,118030.0,118020.0,0.25791225]
[1753281836623,0.02929567,118030.0,118020.0,0.25791225]
[1753281836833,0.0292956,118030.0,118020.0,0.61081048]
[1753281837250,0.05471177,118030.0,118020.0,0.61081048]
[1753281837462,0.0462395,118030.0,118020.0,0.61181048]
[1753281837886,0.05471177,118030.0,118020.0,0.61181048]
[1753281838095,0.22416014,118030.0,118020.0,0.54530694]
[1753281838307,0.34860986,118030.0,118020.0,0.53683409]
[1753281838513,0.25566079,118030.0,118020.0,0.14601552]
[1753281838763,0.25566079,118030.0,118020.0,0.15448844]
[1753281838975,0.25566079,118030.0,118020.0,0.16296129]
[1753281839187,0.07773993,118030.0,118020.0,0.17143371]
[1753281839398,0.0862122,118030.0,118020.0,0.17143335]
[1753281839617,0.33205024,118030.0,118020.0,0.14601524]
[1753281839838,0.31510634,118030.0,118020.0,0.14601553]
[1753281840060,0.30663414,118030.0,118020.0,0.13754261]
[1753281840274,0.12871328,118030.0,118020.0,0.14601553]
[1753281840500,0.01579383,118030.0,118020.0,0.4893366]
[1753281841178,0.01579383,118030.0,118020.0,0.5221366]
[1753281841410,0.01579383,118030.0,118020.0,0.5526366]
[1753281841627,0.02426567,118030.0,118020.0,0.5221366]
[1753281841845,0.01579383,118030.0,118020.0,0.5528366]
[1753281842066,0.01579383,118030.0,118020.0,0.6373139]
[1753281842733,0.42864381,118040.0,118030.0,0.19486483]
[1753281842940,0.43075381,118040.0,118030.0,0.55176306]
[1753281843151,0.43075374,118040.0,118030.0,0.55176306]
[1753281843385,0.43922522,118040.0,118030.0,0.55176306]
[1753281843797,0.43075374,118040.0,118030.0,0.55176306]
[1753281844223,0.43922515,118040.0,118030.0,0.55176306]
[1753281844429,0.44769671,118040.0,118030.0,0.55176306]
[1753281845493,0.43922515,118040.0,118030.0,0.55176306]
[1753281846586,0.43075374,118040.0,118030.0,0.55176306]
[1753281846807,0.44769678,118040.0,118030.0,0.55176306]
[1753281847020,0.62506213,118040.0,118030.0,0.55176306]
[1753281847263,0.6899538,118040.0,118030.0,0.55176306]
[1753281847471,0.70581726,118040.0,118030.0,0.52124325]
[1753281847683,0.4630198,118040.0,118030.0,0.46357753]
[1753281847925,0.64092559,118040.0,118030.0,0.56023512]
[1753281848143,0.66535432,118040.0,118030.0,0.53481894]
[1753281848359,0.66535432,118040.0,118030.0,0.54329114]
[1753281848573,0.74036041,118040.0,118030.0,0.21990142]
[1753281848782,0.73188893,118040.0,118030.0,0.16055705]
[1753281848997,0.73188893,118040.0,118030.0,0.15208492]
[1753281849216,0.74574567,118040.0,118030.0,0.02503638]
[1753281849430,0.01694541,118020.0,118010.0,0.19488489]
[1753281849644,0.02644595,118020.0,118010.0,0.63626013]
[1753281849857,0.02967595,118020.0,118010.0,0.63626013]
[1753281850074,0.01586346,118020.0,118010.0,0.69816013]
[1753281850537,0.01586346,118020.0,118010.0,0.63880969]
[1753281850744,0.01586346,118020.0,118010.0,0.59641744]
[1753281850958,0.01586346,118020.0,118010.0,0.59841744]
[1753281851413,0.01586346,118020.0,118010.0,0.93841744]
[1753281851852,0.01586346,118020.0,118010.0,0.94041744]
[1753281852274,0.01586346,118020.0,118010.0,0.96540642]
[1753281855809,0.02379877,118020.0,118010.0,0.89768463]
[1753281856018,0.02379877,118020.0,118010.0,1.06713719]
[1753281856269,0.01586346,118020.0,118010.0,1.06713719]
[1753281857543,0.01586346,118020.0,118010.0,1.05696517]
[1753281857748,0.01586346,118020.0,118010.0,1.04679315]
[1753281858265,0.01586346,118020.0,118010.0,1.06373999]
[1753281859731,0.01586346,118020.0,118010.0,1.08919199]
[1753281860544,0.00323,118050.0,118040.0,0.19484833]
[1753281860749,0.51192723,118060.0,118050.0,0.19483181]
[1753281860901,0.53043762,118060.0,118050.0,0.55173004]
[1753281861106,0.5389076,118060.0,118050.0,0.55173004]
[1753281861306,0.53890753,118060.0,118050.0,0.55173004]
[1753281861716,0.53939777,118060.0,118050.0,0.55173004]
[1753281861968,0.53392786,118060.0,118050.0,0.52121492]
[1753281862123,0.53392786,118060.0,118050.0,0.546627]
[1753281862321,0.55086774,118060.0,118050.0,0.546627]
[1753281862529,0.55086767,118060.0,118050.0,0.546627]
[1753281862741,0.54439769,118060.0,118050.0,0.546627]
[1753281862941,0.53592786,118060.0,118050.0,0.546627]
[1753281863142,0.54439769,118060.0,118050.0,0.546627]
[1753281863388,0.53592786,118060.0,118050.0,0.546627]
[1753281863597,0.53592801,118060.0,118050.0,0.546627]
[1753281863814,0.54439806,118060.0,118050.0,0.52628435]
[1753281864032,0.13592793,118060.0,118050.0,0.52628435]
[1753281864233,0.13646728,118060.0,118050.0,0.52628435]
[1753281865112,0.01876087,118060.0,118050.0,0.52628435]
[1753281865343,0.01875487,118060.0,118050.0,0.52628435]
[1753281865577,0.02722463,118060.0,118050.0,0.52628435]
[1753281865839,0.06724003,118060.0,118050.0,0.52628435]
[1753281866060,0.04975393,118060.0,118050.0,0.52628435]
[1753281866736,0.01875393,118060.0,118050.0,0.52628435]
[1753281866953,0.00872024,118060.0,118050.0,0.61076165]
[1753281867165,0.00549024,118060.0,118050.0,0.61076165]
[1753281867375,0.00549024,118060.0,118050.0,1.03115988]
[1753281867585,0.00549024,118060.0,118050.0,1.01081788]
[1753281867794,0.00249024,118060.0,118050.0,1.01081788]
[1753281868007,0.00249024,118060.0,118050.0,0.65391965]
[1753281868218,0.00049024,118060.0,118050.0,0.65391965]
[1753281868866,0.00049024,118060.0,118050.0,0.62121965]
[1753281869085,0.00570024,118060.0,118050.0,0.59041965]
[1753281870593,0.08413969,118060.0,118050.0,0.50594235]
[1753281870849,0.30429483,118060.0,118050.0,0.14904412]
[1753281871036,0.29582521,118060.0,118050.0,0.14057379]
[1753281871251,0.68735538,118060.0,118050.0,0.14057379]
[1753281871457,0.67888547,118060.0,118050.0,0.12363204]
[1753281871670,0.0329,118050.0,118040.0,0.56718865]
[1753281871876,0.04340069,118050.0,118040.0,0.65166595]
[1753281872090,0.03811,118050.0,118040.0,0.65166595]
[1753281872296,0.04658048,118050.0,118040.0,0.65166595]
[1753281872509,0.05395276,118050.0,118040.0,0.65166595]
[1753281872954,0.05395276,118050.0,118040.0,0.65266595]
[1753281873170,0.05395276,118050.0,118040.0,0.65366595]
[1753281873437,0.06242317,118050.0,118040.0,0.65366595]
[1753281873650,0.07089372,118050.0,118040.0,0.65366595]
[1753281873799,0.06242317,118050.0,118040.0,0.65366595]
[1753281874191,0.07089365,118050.0,118040.0,0.65366595]
[1753281874393,0.07936427,118050.0,118040.0,0.65366595]
[1753281874596,0.06242317,118050.0,118040.0,0.65366595]
[1753281875038,0.07089372,118050.0,118040.0,0.65366595]
[1753281875520,0.07936434,118050.0,118040.0,0.65366595]
[1753281876325,0.25725491,118050.0,118040.0,0.52833232]
[1753281876560,0.34480507,118050.0,118040.0,0.17990572]
[1753281876759,0.33633445,118050.0,118040.0,0.17143409]
[1753281876982,0.33633445,118050.0,118040.0,0.18837735]
[1753281877359,0.33633445,118050.0,118040.0,0.18837742]
[1753281877475,0.32786361,118050.0,118040.0,0.002]
[1753281877726,0.22604833,118040.0,118030.0,0.54009274]
[1753281877988,0.077667,118040.0,118030.0,0.63304195]
[1753281878247,0.04488148,118040.0,118030.0,0.64875668]
[1753281878534,0.09062148,118040.0,118030.0,0.65722881]
[1753281878761,0.09909304,118040.0,118030.0,0.65722881]
[1753281878941,0.09909354,118040.0,118030.0,0.65722881]
[1753281879153,0.09909311,118040.0,118030.0,0.65722881]
[1753281879369,0.09909311,118040.0,118030.0,0.65922881]
[1753281879585,0.08215007,118040.0,118030.0,0.65922881]
[1753281879798,0.12478203,118040.0,118030.0,0.65922881]
[1753281880168,0.09062163,118040.0,118030.0,0.65922881]
[1753281880375,0.09909326,118040.0,118030.0,0.65922881]
[1753281880783,0.09062163,118040.0,118030.0,0.65922881]
[1753281881030,0.04995014,118040.0,118030.0,0.65922881]
[1753281881274,0.04995,118040.0,118030.0,0.65922881]
[1753281881435,0.05842148,118040.0,118030.0,0.65922881]
[1753281882022,0.06689304,118040.0,118030.0,0.65922881]
[1753281882229,0.06689304,118040.0,118030.0,0.66022881]
[1753281882596,0.01368113,118040.0,118030.0,0.66022881]
[1753281882800,0.02215233,118040.0,118030.0,0.66022881]
[1753281883209,0.03062367,118040.0,118030.0,0.66882677]
[1753281883813,0.00521,118040.0,118030.0,0.66882677]
[1753281884079,0.02215232,118040.0,118030.0,0.66882677]
[1753281884287,0.02215225,118040.0,118030.0,0.66882677]
[1753281884502,0.07149522,118040.0,118030.0,0.66882677]
[1753281884712,0.09843659,118040.0,118030.0,0.66882685]
[1753281884966,0.09843659,118040.0,118030.0,0.67729876]
[1753281885176,0.12913659,118040.0,118030.0,0.67729876]
[1753281885635,0.09372366,118040.0,118030.0,0.67729876]
[1753281885865,0.25468713,118040.0,118030.0,0.01871473]
[1753281886310,0.25468713,118040.0,118030.0,0.38421092]
[1753281886527,0.65468713,118040.0,118030.0,0.38421092]
[1753281886754,0.65468713,118040.0,118030.0,0.38221092]
[1753281886959,0.65468713,118040.0,118030.0,0.01571473]
[1753281887175,0.65468713,118040.0,118030.0,0.38121092]
[1753281887595,0.72899059,118040.0,118030.0,0.38121092]
[1753281887878,0.72084675,118040.0,118030.0,0.38121092]
[1753281888139,0.63636945,118040.0,118030.0,0.38121092]
[1753281888382,0.63636945,118040.0,118030.0,0.38221092]
[1753281888611,0.30049024,118060.0,118030.0,0.53271822]
[1753281888778,0.00049024,118060.0,118050.0,0.98672419]
[1753281889018,0.00049024,118060.0,118050.0,0.63895273]
[1753281889298,0.00049024,118060.0,118050.0,0.7022643]
[1753281889549,0.0315,118090.0,118080.0,0.17784538]
[1753281889766,0.03671,118090.0,118080.0,0.94148936]
[1753281890010,0.03671,118090.0,118080.0,0.94163676]
[1753281890231,0.00521,118090.0,118080.0,0.95665513]
[1753281890456,0.00203,118090.0,118080.0,0.9429504]
[1753281890678,0.40318,118100.0,118090.0,0.19476583]
[1753281890898,0.40521,118100.0,118090.0,0.56026202]
[1753281891115,0.41367689,118100.0,118090.0,0.56026202]
[1753281891330,0.65519259,118100.0,118090.0,0.01693601]
[1753281891546,0.57032145,118100.0,118090.0,0.57680431]
[1753281891771,0.4943114,118100.0,118090.0,0.57680431]
[1753281891982,0.67212681,118100.0,118090.0,0.58527206]
[1753281892190,0.25519266,118100.0,118090.0,0.02543096]
[1753281892404,0.25819266,118100.0,118090.0,0.02543096]
[1753281892602,0.0631,118090.0,118080.0,0.53459994]
[1753281892852,0.27867402,118090.0,118080.0,0.0001474]
[1753281893333,0.42867402,118090.0,118080.0,0.0001474]
[1753281894455,0.43067402,118090.0,118080.0,0.0001474]
[1753281894671,0.43067402,118090.0,118080.0,0.02553555]
[1753281894931,0.68260034,118090.0,118080.0,0.02553555]
[1753281895177,0.68460034,118090.0,118080.0,0.0001474]
[1753281895983,0.68260034,118090.0,118080.0,0.0001474]
[1753281896225,1.02560034,118090.0,118080.0,0.0001474]
[1753281897289,1.02560034,118090.0,118080.0,0.01584775]
[1753281898544,1.02360034,118090.0,118080.0,0.01584775]
[1753281900097,1.02460034,118090.0,118080.0,0.01584775]
[1753281900539,1.02360034,118090.0,118080.0,0.01584775]
[1753281900767,0.65953454,118090.0,118080.0,0.01584775]
[1753281900976,0.35953454,118090.0,118080.0,0.08347529]
[1753281901189,0.36153454,118090.0,118080.0,0.08347529]
[1753281901843,0.36153454,118090.0,118080.0,0.01584775]
[1753281902049,0.5886228,118090.0,118080.0,0.01584775]
[1753281902884,0.7386228,118090.0,118080.0,0.01584775]
[1753281904188,0.66153454,118090.0,118080.0,0.01584775]
[1753281904402,0.51153454,118090.0,118080.0,0.01584775]
[1753281904856,0.51153454,118090.0,118080.0,0.08347529]
[1753281908555,0.51153454,118090.0,118080.0,0.06777494]
[1753281909199,0.66153454,118090.0,118080.0,0.0001474]
[1753281909406,0.89601184,118090.0,118080.0,0.0001474]
[1753281909593,0.91185382,118090.0,118080.0,0.0001474]
[1753281917439,0.91978105,118090.0,118080.0,0.0001474]
[1753281917645,0.91978106,118090.0,118080.0,0.0001474]
[1753281917844,0.91185382,118090.0,118080.0,0.0001474]
[1753281918244,0.91978355,118090.0,118080.0,0.0001474]
[1753281921431,0.91978554,118090.0,118080.0,0.0001474]
[1753281923532,0.33632962,118070.0,118060.0,0.09278423]
[1753281923729,0.50729422,118070.0,118060.0,0.09290896]
[1753281923920,0.51028422,118070.0,118060.0,0.09290896]
[1753281925287,0.51128422,118070.0,118060.0,0.09290896]
[1753281926066,0.74093324,118070.0,118060.0,0.00012473]
[1753281926509,0.27180692,118070.0,118060.0,0.36761798]
[1753281926712,0.27180692,118070.0,118060.0,0.39871798]
[1753281926910,0.27080692,118070.0,118060.0,0.39871798]
[1753281927186,0.27279692,118070.0,118060.0,0.39871798]
[1753281927414,0.27579692,118070.0,118060.0,0.00218473]
[1753281927627,0.3409976,118070.0,118060.0,0.36761798]
[1753281927876,0.3429976,118070.0,118060.0,0.36555798]
[1753281928049,0.3429976,118070.0,118060.0,0.36761798]
[1753281928490,0.3429976,118070.0,118060.0,0.39268869]
[1753281929114,0.3399976,118070.0,118060.0,0.39268869]
[1753281930251,0.3429976,118070.0,118060.0,0.39268869]
[1753281931139,0.3429976,118070.0,118060.0,0.39062869]
[1753281931631,0.3380076,118070.0,118060.0,0.39268869]
[1753281931866,0.3380076,118070.0,118060.0,0.45893869]
[1753281932331,0.27580692,118070.0,118060.0,0.45893869]
[1753281932567,0.19132962,118070.0,118060.0,0.45893869]
[1753281935849,0.19132962,118070.0,118060.0,0.62834407]
[1753281936520,0.19132962,118070.0,118060.0,0.45893869]
[1753281936759,0.19132962,118070.0,118060.0,0.63681419]
[1753281936979,0.1997991,118070.0,118060.0,0.65375407]
[1753281937193,0.20826865,118070.0,118060.0,0.65375407]
[1753281937409,0.43887762,118070.0,118060.0,0.66222383]
[1753281937627,0.43040749,118070.0,118060.0,0.66222383]
[1753281937844,0.42840749,118070.0,118060.0,0.66222383]
[1753281938110,0.61173747,118070.0,118060.0,0.65375407]
[1753281938327,0.61173747,118070.0,118060.0,0.66222383]
[1753281938328,0.43387689,118070.0,118060.0,0.66222383]
[1753281938544,0.43587689,118070.0,118060.0,0.66222383]
[1753281938771,0.6137374,118070.0,118060.0,0.66222383]
[1753281938912,0.59679946,118070.0,118060.0,0.63681433]
[1753281939139,0.59679946,118070.0,118060.0,0.64528452]
[1753281939756,0.59779946,118070.0,118060.0,0.64528452]
[1753281939957,0.59779946,118070.0,118060.0,0.65375464]
[1753281940160,0.58933006,118070.0,118060.0,0.45893869]
[1753281940356,0.67380736,118070.0,118060.0,0.45893869]
[1753281941065,0.67579736,118070.0,118060.0,0.42588869]
[1753281941689,0.71129736,118070.0,118060.0,0.39062869]
[1753281941916,0.67879736,118070.0,118060.0,0.39062869]
[1753281942781,0.67879736,118070.0,118060.0,0.39268869]
[1753281945979,0.59132006,118070.0,118060.0,0.59329407]
[1753281946192,0.58933006,118070.0,118060.0,0.60471426]
[1753281946362,0.58933006,118070.0,118060.0,0.63781426]
[1753281947420,0.58933006,118070.0,118060.0,0.62934407]
[1753281947627,0.58933006,118070.0,118060.0,0.63781433]
[1753281947829,0.0114689,118070.0,118060.0,1.02865751]
[1753281948059,0.003,118070.0,118060.0,1.02865751]
[1753281948364,0.003,118070.0,118060.0,1.11313481]
[1753281949343,0.002,118070.0,118060.0,1.11313481]
[1753281949632,0.01693529,118090.0,118080.0,0.25748232]
[1753281949809,0.80934801,118100.0,118090.0,0.21869836]
[1753281949810,0.42628244,118100.0,118090.0,0.21869836]
[1753281949958,0.42628244,118100.0,118090.0,0.41682926]
[1753281949959,0.25693443,118100.0,118090.0,0.41682926]
[1753281950384,0.25693443,118100.0,118090.0,0.44712926]
[1753281950641,0.25693443,118100.0,118090.0,0.45007926]
[1753281951152,0.09,118100.0,118090.0,0.43314325]
[1753281951792,0.49,118100.0,118090.0,0.43314325]
[1753281952459,0.55725748,118100.0,118090.0,0.43314325]
[1753281953034,0.402,118100.0,118090.0,0.43314325]
[1753281953495,0.405,118100.0,118090.0,0.43314325]
[1753281955112,0.495,118100.0,118090.0,0.43314325]
[1753281955312,0.405,118100.0,118090.0,0.43314325]
[1753281956396,0.405,118100.0,118090.0,0.40284325]
[1753281956594,0.47705748,118100.0,118090.0,0.40284325]
[1753281956787,0.405,118100.0,118090.0,0.43464325]
[1753281959343,0.405,118100.0,118090.0,0.40284325]
[1753281959972,0.405,118100.0,118090.0,0.43394325]
[1753281960174,0.495,118100.0,118090.0,0.43394325]
[1753281960806,0.095,118100.0,118090.0,0.43394325]
[1753281961046,0.005,118100.0,118090.0,0.43394325]
[1753281961479,0.005,118100.0,118090.0,0.39989325]
[1753281961688,0.00712,118100.0,118090.0,0.39989325]
[1753281961923,0.005,118100.0,118090.0,0.39989325]
[1753281962152,0.003,118100.0,118090.0,0.39989325]
[1753281962358,0.001,118100.0,118090.0,0.39989325]
[1753281962571,0.003,118100.0,118090.0,0.39989325]
[1753281962769,0.00512,118100.0,118090.0,0.39989325]
[1753281963624,0.003,118100.0,118090.0,0.39989325]
[1753281964943,0.003,118100.0,118090.0,0.40313325]
[1753281965949,0.003,118100.0,118090.0,0.50336079]
[1753281966173,0.003,118100.0,118090.0,0.97020678]
[1753281966592,0.003,118100.0,118090.0,0.60477353]
[1753281968271,0.001,118100.0,118090.0,0.60477353]
[1753281968730,0.1740893,118110.0,118100.0,0.36540132]
[1753281968958,0.16562291,118110.0,118100.0,0.96346258]
[1753281969184,0.14869041,118110.0,118100.0,0.96670258]
[1753281970082,0.14869041,118110.0,118100.0,0.96770258]
[1753281970315,0.15715644,118110.0,118100.0,0.96770258]
[1753281970538,0.17408894,118110.0,118100.0,0.96770258]
[1753281971197,0.17408894,118110.0,118100.0,0.96870258]
[1753281971409,0.18255548,118110.0,118100.0,0.96870258]
[1753281971639,0.17408894,118110.0,118100.0,0.96870258]